bitfinex/quotes_BTCUSD_20260127
["timestamp","ask_amount","ask_price","bid_price","bid_amount"]
[1769542754556,0.23528272,88407.0,88391.0,0.02463165]
[1769542757468,0.29183998,88406.0,88391.0,0.02463165]
[1769542757678,0.29183998,88406.0,88388.0,0.2176901]
[1769542757847,0.3163684,88406.0,88388.0,0.2176901]
[1769542758051,0.25981114,88406.0,88388.0,0.2176901]
[1769542758626,0.02452842,88405.0,88380.0,0.26959833]
[1769542758835,0.02452842,88403.0,88382.0,0.02463165]
[1769542759081,0.02452842,88403.0,88384.0,0.02463165]
[1769542759304,0.0810879,88403.0,88384.0,0.24232175]
[1769542759463,0.26959833,88400.0,88384.0,0.24232175]
[1769542760131,0.25981114,88393.0,88371.0,0.2176901]
[1769542760329,0.25981114,88393.0,88370.0,0.0002002]
[1769542760330,0.25981114,88393.0,88373.0,0.24232175]
[1769542760552,0.0004,88408.0,88381.0,0.02463165]
[1769542760553,0.05655883,88404.0,88381.0,0.02463165]
[1769542760775,0.0004,88408.0,88385.0,0.02463165]
[1769542760960,0.0004,88408.0,88391.0,0.24232175]
[1769542761177,0.0004,88408.0,88391.0,0.24223018]
[1769542761359,0.23528272,88407.0,88391.0,0.02463165]
[1769542761990,0.0004,88408.0,88380.0,0.26959833]
[1769542761991,0.23528272,88400.0,88380.0,0.26959833]
[1769542762234,0.0004,88408.0,88383.0,0.2176901]
[1769542762447,0.0004,88408.0,88380.0,0.26959833]
[1769542762448,0.1129436,88407.0,88386.0,0.02463165]
[1769542762657,0.25981114,88406.0,88386.0,0.2176901]
[1769542762872,0.31636886,88406.0,88387.0,0.24232175]
[1769542763118,0.26959833,88400.0,88372.0,0.11628]
[1769542763331,0.02285282,88406.0,88376.0,0.0234636]
[1769542763532,0.22005546,88403.0,88382.0,0.24470437]
[1769542763761,0.05655884,88404.0,88382.0,0.24470437]
[1769542763762,0.22005546,88401.0,88382.0,0.24470437]
[1769542763975,0.26959833,88400.0,88382.0,0.24470437]
[1769542764592,0.26959833,88400.0,88371.0,0.11628]
[1769542764593,0.23960615,88397.0,88374.0,0.21639638]
[1769542764821,0.26436882,88397.0,88378.0,0.21639638]
[1769542765014,0.26436882,88397.0,88378.0,0.23997915]
[1769542765453,0.26436882,88397.0,88379.0,0.02358277]
[1769542765600,0.26436882,88397.0,88379.0,0.21639638]
[1769542765956,0.26436882,88397.0,88381.0,0.21639638]
[1769542766392,0.26959833,88400.0,88381.0,0.21639638]
[1769542766620,0.23960615,88402.0,88382.0,0.23997915]
[1769542766621,0.11317027,88399.0,88382.0,0.23997915]
[1769542766848,0.11317027,88398.0,88382.0,0.23997915]
[1769542767076,0.11528289,88410.0,88391.0,0.21639638]
[1769542767312,0.11316537,88407.0,88392.0,0.02358277]
[1769542767528,0.11316537,88406.0,88392.0,0.02118815]
[1769542767749,0.11316537,88405.0,88391.0,0.21639638]
[1769542767970,0.11316537,88404.0,88391.0,0.21447857]
[1769542768200,0.11316537,88403.0,88393.0,0.23997915]
[1769542768441,0.11316537,88402.0,88393.0,0.23997915]
[1769542768651,0.11329099,88401.0,88393.0,0.23997915]
[1769542768856,0.11329099,88400.0,88393.0,0.23997915]
[1769542769069,0.0004,88408.0,88393.0,0.23727443]
[1769542769300,0.11328814,88407.0,88393.0,0.2338934]
[1769542769559,0.09081979,88411.0,88398.0,0.02358277]
[1769542769761,0.000187,88411.0,88401.0,0.21639638]
[1769542769959,0.000187,88411.0,88400.0,0.2931811]
[1769542770393,0.000187,88411.0,88400.0,0.02358277]
[1769542771100,0.000187,88411.0,88400.0,0.23997915]
[1769542773485,0.000187,88411.0,88400.0,0.02358277]
[1769542775226,0.50920448,88410.0,88389.0,0.11628]
[1769542775420,0.50920448,88410.0,88384.0,0.02358277]
[1769542775421,0.01,88400.0,88384.0,0.02358277]
[1769542775596,0.02476267,88407.0,88386.0,0.02358277]
[1769542775826,0.02476267,88407.0,88387.0,0.21639638]
[1769542775956,0.00013944,88410.0,88393.0,0.21639638]
[1769542776186,0.00013944,88410.0,88396.0,0.02358277]
[1769542776406,0.00013944,88410.0,88401.0,0.23997915]
[1769542777583,0.00013944,88410.0,88400.0,0.26959833]
[1769542777788,0.00013944,88410.0,88401.0,0.23997915]
[1769542779509,0.00013944,88410.0,88391.0,0.02358277]
[1769542779684,0.00013944,88410.0,88394.0,0.21639638]
[1769542779854,0.00013944,88410.0,88396.0,0.21639638]
[1769542781062,0.00013944,88410.0,88396.0,0.21753047]
[1769542783213,0.02490211,88410.0,88396.0,0.21639638]
[1769542786591,0.02490211,88410.0,88396.0,0.21753046]
[1769542786955,0.00013944,88410.0,88400.0,0.26928054]
[1769542787152,0.00013944,88410.0,88401.0,0.21639638]
[1769542788096,0.0004,88423.0,88403.0,0.21639638]
[1769542788252,0.0004,88423.0,88412.0,0.21639638]
[1769542788593,0.0004,88423.0,88413.0,0.02223029]
[1769542790507,0.0004,88423.0,88413.0,0.23862667]
[1769542790708,0.0004,88423.0,88413.0,0.21639638]
[1769542790915,0.0004,88423.0,88414.0,0.02358277]
[1769542791522,0.0004,88423.0,88412.0,0.00013944]
[1769542792193,0.23960615,88421.0,88404.0,0.02358277]
[1769542792431,0.23974561,88421.0,88404.0,0.02358277]
[1769542793683,0.26450828,88421.0,88404.0,0.02358277]
[1769542794119,0.23974561,88421.0,88404.0,0.02358277]
[1769542794276,0.23960615,88419.0,88403.0,0.21639638]
[1769542797368,0.2182774,88417.0,88398.0,0.11624]
[1769542797510,0.2182774,88415.0,88398.0,0.11624]
[1769542797950,0.2182774,88415.0,88400.0,0.26928054]
[1769542798152,0.02276589,88416.0,88400.0,0.52642974]
[1769542800788,0.24118275,88421.0,88401.0,0.23340687]
[1769542801027,0.24118275,88421.0,88401.0,0.2571492]
[1769542801304,0.24118275,88421.0,88402.0,0.23340687]
[1769542801505,0.24118275,88421.0,88403.0,0.02374233]
[1769542801713,0.24118275,88421.0,88403.0,0.2571492]
[1769542802677,0.27482743,88418.0,88403.0,0.02374233]
[1769542802872,0.2182774,88418.0,88403.0,0.02374233]
[1769542804306,0.27482706,88418.0,88403.0,0.02374233]
[1769542804505,0.02276589,88415.0,88398.0,0.11624]
[1769542804739,0.24104329,88411.0,88398.0,0.11624]
[1769542805312,0.27482879,88416.0,88398.0,0.11624]
[1769542805513,0.05655139,88416.0,88398.0,0.11624]
[1769542805719,0.29759457,88417.0,88399.0,0.23340687]
[1769542805971,0.07931717,88417.0,88399.0,0.23340687]
[1769542806104,0.27482825,88416.0,88399.0,0.23340687]
[1769542806932,0.2182774,88416.0,88399.0,0.23340687]
[1769542807409,0.02276589,88417.0,88399.0,0.02374233]
[1769542807614,0.24104329,88424.0,88402.0,0.02374233]
[1769542807810,0.11318889,88420.0,88404.0,0.02374233]
[1769542808011,0.24104329,88424.0,88404.0,0.02374233]
[1769542808012,0.11318889,88419.0,88404.0,0.02374233]
[1769542808214,0.24104329,88424.0,88404.0,0.02374233]
[1769542808413,0.11319345,88420.0,88404.0,0.02374233]
[1769542808598,0.11319345,88419.0,88404.0,0.2571492]
[1769542808805,0.24104329,88424.0,88404.0,0.2571492]
[1769542809012,0.29758944,88424.0,88404.0,0.2571492]
[1769542809212,0.24104329,88424.0,88404.0,0.2571492]
[1769542810379,0.19753606,88434.0,88412.0,0.23340687]
[1769542810595,0.1070066,88434.0,88415.0,0.02374233]
[1769542810790,0.1070066,88434.0,88416.0,0.02374233]
[1769542810992,0.1070066,88434.0,88410.0,0.26928054]
[1769542810993,0.106813,88434.0,88419.0,0.23340687]
[1769542811189,0.16335259,88434.0,88420.0,0.02374233]
[1769542812363,0.106813,88434.0,88419.0,0.00013946]
[1769542812522,0.2182774,88433.0,88419.0,0.00013946]
[1769542813244,0.05654128,88431.0,88419.0,0.00013946]
[1769542813637,0.27481777,88433.0,88419.0,0.00013946]
[1769542814620,0.2182774,88433.0,88419.0,0.02388179]
[1769542814815,0.16335236,88434.0,88421.0,0.23340687]
[1769542815046,0.106813,88434.0,88419.0,0.00013946]
[1769542815219,0.27481804,88432.0,88419.0,0.00013946]
[1769542815607,0.00013946,88419.0,88406.0,0.02374233]
[1769542815809,0.0002789,88419.0,88406.0,0.02374233]
[1769542816530,0.0002789,88419.0,88403.0,0.23340687]
[1769542816531,0.2182774,88418.0,88401.0,0.02384793]
[1769542819367,0.00013944,88419.0,88401.0,0.02384793]
[1769542819584,0.21841684,88419.0,88401.0,0.02384793]
[1769542819757,0.00013944,88419.0,88403.0,0.02374233]
[1769542820520,0.00013944,88419.0,88410.0,0.02374233]
[1769542820727,0.00013944,88419.0,88410.0,0.23340687]
[1769542820950,0.00013944,88419.0,88411.0,0.02374233]
[1769542821697,0.00013944,88419.0,88405.0,0.23340687]
[1769542821829,0.00013944,88419.0,88406.0,0.02374233]
[1769542824040,0.00013944,88419.0,88411.0,0.02475749]
[1769542824266,0.00013944,88419.0,88409.0,0.26928054]
[1769542824267,0.00013944,88419.0,88413.0,0.02475749]
[1769542824468,0.00013944,88419.0,88413.0,0.02273059]
[1769542824601,0.00013944,88419.0,88413.0,0.01935197]
[1769542824808,0.00013944,88419.0,88413.0,0.01597279]
[1769542825010,0.00013944,88419.0,88414.0,0.02335185]
[1769542825218,0.00013944,88419.0,88416.0,0.21838117]
[1769542825436,0.00013944,88419.0,88417.0,0.02335185]
[1769542826528,0.00013944,88419.0,88407.0,0.21838117]
[1769542826753,0.00013944,88419.0,88409.0,0.21838117]
[1769542826971,0.00013944,88419.0,88410.0,0.02335185]
[1769542827897,0.00013944,88419.0,88406.0,0.21838117]
[1769542829081,0.00013944,88419.0,88406.0,0.24173302]
[1769542829286,0.00013944,88419.0,88407.0,0.02335185]
[1769542829922,0.00013944,88419.0,88407.0,0.01735185]
[1769542830157,0.23545943,88418.0,88401.0,0.0001056]
[1769542830302,0.00013944,88419.0,88403.0,0.21838117]
[1769542830504,0.00013944,88419.0,88404.0,0.02335185]
[1769542830951,0.00013944,88419.0,88404.0,0.21838117]
[1769542831108,0.00013944,88419.0,88404.0,0.24173302]
[1769542833965,0.00013944,88419.0,88404.0,0.21838117]
[1769542834160,0.00013944,88419.0,88405.0,0.02335185]
[1769542837578,0.00013944,88419.0,88405.0,0.21838117]
[1769542837782,0.00013944,88419.0,88406.0,0.02335185]
[1769542838946,0.23545943,88418.0,88401.0,0.0001056]
[1769542839153,0.23545943,88418.0,88401.0,0.02345745]
[1769542839576,0.0007869,88403.0,88402.0,0.24173302]
[1769542839781,0.23545943,88418.0,88402.0,0.24173302]
[1769542841244,0.00013944,88419.0,88402.0,0.24173302]
[1769542841664,0.00013944,88419.0,88403.0,0.02335185]
[1769542845931,0.23559887,88419.0,88403.0,0.02335185]
[1769542847957,0.02393912,88418.0,88401.0,0.0001056]
[1769542848200,0.26923243,88420.0,88401.0,0.0001056]
[1769542848201,0.23545943,88417.0,88401.0,0.0001056]
[1769542848412,0.02062712,88416.0,88401.0,0.00024504]
[1769542849415,0.0004,88423.0,88401.0,0.00024504]
[1769542849617,0.02102712,88423.0,88404.0,0.21838117]
[1769542849791,0.0004,88423.0,88410.0,0.26923243]
[1769542849997,0.0004,88423.0,88407.0,0.02335185]
[1769542850371,0.23545943,88422.0,88401.0,0.00024504]
[1769542850611,0.23545943,88420.0,88401.0,0.00024504]
[1769542850792,0.23545943,88420.0,88401.0,0.02359689]
[1769542852308,0.23545943,88420.0,88402.0,0.02335185]
[1769542853311,0.02062712,88418.0,88401.0,0.00024504]
[1769542853512,0.26923243,88420.0,88401.0,0.00024504]
[1769542853513,0.25608655,88417.0,88401.0,0.00024504]
[1769542856197,0.22014039,88416.0,88401.0,0.00024504]
[1769542857710,0.0004,88423.0,88403.0,0.02333024]
[1769542857882,0.11327121,88422.0,88405.0,0.2350226]
[1769542858079,0.0004,88423.0,88406.0,0.02333024]
[1769542858080,0.11327121,88421.0,88406.0,0.02333024]
[1769542858306,0.11327121,88420.0,88406.0,0.02333024]
[1769542858514,0.11327121,88419.0,88406.0,0.02333024]
[1769542859295,0.0004,88423.0,88407.0,0.02333024]
[1769542859498,0.11327414,88422.0,88408.0,0.02197809]
[1769542859714,0.11327414,88421.0,88408.0,0.01859748]
[1769542859904,0.11327414,88420.0,88408.0,0.01521639]
[1769542860107,0.11327414,88419.0,88408.0,0.01183499]
[1769542860342,0.0004,88423.0,88408.0,0.00777698]
[1769542860511,0.11327442,88422.0,88408.0,0.00507144]
[1769542860710,0.11327442,88421.0,88408.0,0.00168929]
[1769542861006,0.11327442,88420.0,88407.0,0.23367049]
[1769542861205,0.0004,88423.0,88403.0,0.02333024]
[1769542861206,0.11327442,88419.0,88403.0,0.02333024]
[1769542861474,0.02341377,88418.0,88401.0,0.00024504]
[1769542861624,0.26923243,88420.0,88401.0,0.00024504]
[1769542861625,0.22014039,88415.0,88401.0,0.00024504]
[1769542861963,0.24355416,88415.0,88401.0,0.00024504]
[1769542869943,0.0004,88423.0,88402.0,0.2350226]
[1769542870199,0.11329262,88422.0,88404.0,0.25835284]
[1769542870369,0.0004,88423.0,88404.0,0.25835284]
[1769542870566,0.11329117,88422.0,88404.0,0.25835284]
[1769542870799,0.0004,88423.0,88404.0,0.25835284]
[1769542871005,0.11329098,88422.0,88404.0,0.2350226]
[1769542871145,0.11329098,88422.0,88401.0,0.00024504]
[1769542871146,0.0004,88423.0,88405.0,0.25835284]
[1769542871354,0.11329095,88422.0,88405.0,0.25835284]
[1769542871544,0.0004,88423.0,88405.0,0.25835284]
[1769542871749,0.07326577,88427.0,88406.0,0.02333024]
[1769542871976,0.22014039,88425.0,88406.0,0.02333024]
[1769542872615,0.22014039,88425.0,88407.0,0.02333024]
[1769542872896,0.22014039,88425.0,88407.0,0.01994534]
[1769542873096,0.22014039,88425.0,88407.0,0.25158414]
[1769542873298,0.22014039,88425.0,88407.0,0.24887692]
[1769542873610,0.11328952,88424.0,88407.0,0.243462]
[1769542873889,0.11328952,88423.0,88407.0,0.23872342]
[1769542874100,0.11328952,88422.0,88407.0,0.23804494]
[1769542874251,0.11328952,88421.0,88407.0,0.23578369]
[1769542874452,0.22014039,88425.0,88407.0,0.23374706]
[1769542874740,0.11329107,88424.0,88407.0,0.23102585]
[1769542874936,0.11329107,88423.0,88407.0,0.2287579]
[1769542875141,0.11329107,88422.0,88407.0,0.2264897]
[1769542875319,0.11329107,88421.0,88407.0,0.22467496]
[1769542875498,0.22014039,88425.0,88407.0,0.22195255]
[1769542875703,0.11329167,88424.0,88407.0,0.2196836]
[1769542876016,0.11329167,88423.0,88407.0,0.2196836]
[1769542876198,0.11329167,88422.0,88407.0,0.2196836]
[1769542876392,0.22014039,88425.0,88407.0,0.2196836]
[1769542876607,0.11329007,88424.0,88407.0,0.2196836]
[1769542876816,0.11329007,88423.0,88407.0,0.2196836]
[1769542877018,0.11329007,88422.0,88407.0,0.2196836]
[1769542877216,0.22014039,88425.0,88401.0,0.00013944]
[1769542877424,0.26923243,88420.0,88401.0,0.00013944]
[1769542877660,0.24355416,88418.0,88401.0,0.00013944]
[1769542878191,0.24355416,88418.0,88402.0,0.2350226]
[1769542878405,0.02341377,88426.0,88404.0,0.2350226]
[1769542878614,0.13670344,88425.0,88406.0,0.2350226]
[1769542878820,0.13670344,88424.0,88406.0,0.2350226]
[1769542879058,0.11328967,88423.0,88406.0,0.2350226]
[1769542879257,0.11328967,88422.0,88406.0,0.2350226]
[1769542879491,0.11328967,88421.0,88406.0,0.2350226]
[1769542879678,0.02341377,88424.0,88406.0,0.2350226]
[1769542879916,0.11328864,88423.0,88406.0,0.2350226]
[1769542880059,0.11328864,88422.0,88406.0,0.2350226]
[1769542880255,0.11328864,88421.0,88406.0,0.2350226]
[1769542880457,0.02341377,88424.0,88406.0,0.2350226]
[1769542880711,0.11328799,88423.0,88406.0,0.2350226]
[1769542880871,0.11328799,88422.0,88406.0,0.2350226]
[1769542881058,0.02341377,88424.0,88401.0,0.00013944]
[1769542881059,0.19734246,88434.0,88412.0,0.02333024]
[1769542881256,0.02341377,88433.0,88418.0,0.2350226]
[1769542881587,0.24355416,88432.0,88413.0,0.2350226]
[1769542881733,0.11327779,88431.0,88413.0,0.2350226]
[1769542881930,0.11327779,88430.0,88413.0,0.2350226]
[1769542882164,0.11327779,88429.0,88413.0,0.2350226]
[1769542882364,0.24355416,88432.0,88413.0,0.2350226]
[1769542882605,0.11322998,88431.0,88413.0,0.2350226]
[1769542882818,0.24355416,88432.0,88413.0,0.2350226]
[1769542882819,0.11322998,88430.0,88413.0,0.2350226]
[1769542883134,0.24355416,88432.0,88413.0,0.2350226]
[1769542883444,0.11322998,88431.0,88413.0,0.2350226]
[1769542883666,0.24355416,88432.0,88413.0,0.2350226]
[1769542883667,0.11322998,88430.0,88413.0,0.2350226]
[1769542883823,0.24355416,88432.0,88413.0,0.25860817]
[1769542884006,0.11321407,88431.0,88413.0,0.25860817]
[1769542884207,0.11321407,88430.0,88413.0,0.25860817]
[1769542884411,0.24355416,88432.0,88413.0,0.25860817]
[1769542884628,0.11320186,88431.0,88413.0,0.25860817]
[1769542884843,0.24355416,88432.0,88413.0,0.25860817]
[1769542885054,0.11320186,88431.0,88413.0,0.25860817]
[1769542885269,0.24355416,88432.0,88413.0,0.25860817]
[1769542885470,0.11319232,88431.0,88413.0,0.25860817]
[1769542885667,0.24355416,88432.0,88413.0,0.25860817]
[1769542885889,0.11319233,88431.0,88413.0,0.25860817]
[1769542886103,0.24355416,88432.0,88413.0,0.25860817]
[1769542886315,0.11319227,88431.0,88413.0,0.25860817]
[1769542886525,0.24355416,88432.0,88413.0,0.25860817]
[1769542886744,0.11318462,88431.0,88413.0,0.25860817]
[1769542886977,0.24355416,88432.0,88413.0,0.25860817]
[1769542888038,0.22014039,88432.0,88413.0,0.25860817]
[1769542888372,0.02307566,88431.0,88413.0,0.25860817]
[1769542893076,0.02307566,88431.0,88413.0,0.25838189]
[1769542897459,0.02307566,88431.0,88413.0,0.23479632]
[1769542899627,0.02307566,88429.0,88413.0,0.23479632]
[1769542899789,0.07961994,88427.0,88413.0,0.23479632]
[1769542899990,0.07961994,88427.0,88413.0,0.23447694]
[1769542901767,0.07961994,88427.0,88408.0,0.02372972]
[1769542901768,0.02307566,88427.0,88408.0,0.02372972]
[1769542901960,0.23158738,88418.0,88406.0,0.004]
[1769542902122,0.02307566,88414.0,88406.0,0.004]
[1769542902567,0.02307566,88413.0,88406.0,0.004]
[1769542907504,0.50081981,88420.0,88406.0,0.004]
[1769542907711,0.02307566,88419.0,88406.0,0.004]
[1769542907915,0.23158738,88426.0,88409.0,0.26924475]
[1769542908111,0.02307566,88427.0,88410.0,0.21317912]
[1769542908314,0.25466304,88427.0,88410.0,0.21317912]
[1769542909092,0.02307566,88426.0,88410.0,0.21317912]
[1769542911708,0.02307566,88433.0,88411.0,0.02372972]
[1769542911908,0.11317579,88432.0,88415.0,0.02372972]
[1769542912112,0.11317579,88431.0,88416.0,0.21317912]
[1769542912311,0.11317579,88430.0,88416.0,0.21317912]
[1769542912495,0.11317579,88429.0,88416.0,0.21317912]
[1769542912700,0.02307566,88432.0,88416.0,0.21317912]
[1769542913048,0.02307566,88430.0,88416.0,0.21317912]
[1769542913266,0.11317419,88429.0,88416.0,0.21317912]
[1769542913476,0.02307566,88430.0,88416.0,0.21317912]
[1769542913683,0.11317548,88429.0,88416.0,0.21317912]
[1769542913985,0.02307566,88430.0,88416.0,0.21317912]
[1769542914107,0.11317548,88429.0,88416.0,0.21317912]
[1769542914343,0.02307566,88430.0,88416.0,0.21317912]
[1769542914540,0.11317681,88429.0,88416.0,0.21317912]
[1769542914794,0.02307566,88430.0,88416.0,0.21317912]
[1769542915296,0.02307566,88430.0,88416.0,0.2109086]
[1769542915458,0.02307566,88430.0,88416.0,0.20909198]
[1769542915796,0.02307566,88430.0,88416.0,0.205004]
[1769542916023,0.11317807,88429.0,88416.0,0.20273255]
[1769542916235,0.11317807,88428.0,88416.0,0.20091521]
[1769542916385,0.02307566,88430.0,88416.0,0.1981889]
[1769542916585,0.11318024,88429.0,88416.0,0.1959167]
[1769542916811,0.11318024,88428.0,88416.0,0.19409876]
[1769542917008,0.02307566,88430.0,88416.0,0.19182611]
[1769542917185,0.11318024,88429.0,88416.0,0.18955321]
[1769542917386,0.11318024,88428.0,88416.0,0.18773471]
[1769542917587,0.11318024,88427.0,88416.0,0.18591605]
[1769542917794,0.02307566,88430.0,88416.0,0.18455194]
[1769542917996,0.11318363,88429.0,88416.0,0.18273296]
[1769542918304,0.11318363,88428.0,88416.0,0.18000419]
[1769542918473,0.11318363,88427.0,88416.0,0.17863967]
[1769542918686,0.02307566,88430.0,88416.0,0.17772994]
[1769542918912,0.11318596,88429.0,88416.0,0.17500051]
[1769542919087,0.11318596,88428.0,88416.0,0.17318069]
[1769542919289,0.11318596,88427.0,88416.0,0.17045066]
[1769542919497,0.02307566,88430.0,88416.0,0.16817536]
[1769542919695,0.11318828,88429.0,88416.0,0.16589981]
[1769542919897,0.11318828,88428.0,88416.0,0.16362401]
[1769542920095,0.11318828,88427.0,88416.0,0.16180319]
[1769542920298,0.02307566,88430.0,88416.0,0.15952693]
[1769542920499,0.11318809,88429.0,88416.0,0.15725038]
[1769542920717,0.11318809,88428.0,88416.0,0.04692765]
[1769542920915,0.02307566,88430.0,88416.0,0.04510603]
[1769542921100,0.02307566,88430.0,88416.0,0.04328425]
[1769542921314,0.02307566,88430.0,88416.0,0.0423733]
[1769542921518,0.02307566,88430.0,88416.0,0.0410068]
[1769542921701,0.02307566,88430.0,88416.0,0.03918466]
[1769542921904,0.02307566,88430.0,88416.0,0.03690676]
[1769542921905,0.11318999,88429.0,88416.0,0.03690676]
[1769542922114,0.11318999,88428.0,88416.0,0.03645115]
[1769542922308,0.11318999,88427.0,88416.0,0.03417301]
[1769542922565,0.02307566,88430.0,88416.0,0.03189469]
[1769542922707,0.13657866,88429.0,88410.0,0.26924475]
[1769542922911,0.11319319,88428.0,88410.0,0.26924475]
[1769542923094,0.11319319,88427.0,88412.0,0.02443325]
[1769542923295,0.13019847,88434.0,88415.0,0.22017738]
[1769542923491,0.11319644,88433.0,88415.0,0.24461063]
[1769542923703,0.11319644,88432.0,88415.0,0.24461063]
[1769542923908,0.11319644,88431.0,88415.0,0.24461063]
[1769542924130,0.11319644,88430.0,88415.0,0.24461063]
[1769542924328,0.11319644,88429.0,88415.0,0.24461063]
[1769542924548,0.11319644,88428.0,88410.0,0.48942213]
[1769542924725,0.11319644,88427.0,88410.0,0.26924475]
[1769542924911,0.11319644,88427.0,88411.0,0.22017738]
[1769542925342,0.21489818,88425.0,88406.0,0.00384031]
[1769542925540,0.02338547,88422.0,88406.0,0.00384031]
[1769542925742,0.106813,88434.0,88406.0,0.00384031]
[1769542925743,0.02338547,88419.0,88406.0,0.00384031]
[1769542925986,0.02338547,88417.0,88406.0,0.00384031]
[1769542927104,0.02338547,88429.0,88408.0,0.22017738]
[1769542927345,0.02338547,88426.0,88408.0,0.22017738]
[1769542927508,0.02338547,88424.0,88408.0,0.22017738]
[1769542927663,0.02338547,88422.0,88408.0,0.22017738]
[1769542930834,0.02338547,88431.0,88411.0,0.22017738]
[1769542931039,0.02338547,88429.0,88411.0,0.22017738]
[1769542931252,0.11323065,88428.0,88411.0,0.22017738]
[1769542931600,0.11323065,88427.0,88411.0,0.22017738]
[1769542932016,0.11323065,88427.0,88411.0,0.24024283]
[1769542932228,0.11323065,88427.0,88412.0,0.02006545]
[1769542932454,0.11323065,88427.0,88413.0,0.24024283]
[1769542932642,0.11323065,88426.0,88413.0,0.24024283]
[1769542932872,0.11323065,88425.0,88413.0,0.24024283]
[1769542933095,0.02338547,88430.0,88413.0,0.24024283]
[1769542933288,0.11323568,88429.0,88413.0,0.24024283]
[1769542933428,0.11323568,88428.0,88413.0,0.24024283]
[1769542933631,0.11323568,88427.0,88413.0,0.24024283]
[1769542933845,0.11323568,88426.0,88413.0,0.24024283]
[1769542934043,0.11323568,88425.0,88413.0,0.24024283]
[1769542934247,0.02338547,88429.0,88413.0,0.22017738]
[1769542934492,0.13663541,88428.0,88413.0,0.22017738]
[1769542934699,0.11324994,88427.0,88413.0,0.22017738]
[1769542935018,0.11324994,88426.0,88413.0,0.22017738]
[1769542935166,0.11324994,88425.0,88413.0,0.22017738]
[1769542935383,0.02338547,88427.0,88413.0,0.22017738]
[1769542935583,0.11325972,88426.0,88413.0,0.22017738]
[1769542935812,0.11325972,88425.0,88413.0,0.22017738]
[1769542936016,0.02338547,88427.0,88413.0,0.22017738]
[1769542936218,0.11325972,88426.0,88413.0,0.22017738]
[1769542936425,0.11325972,88425.0,88413.0,0.22017738]
[1769542936630,0.11325972,88424.0,88408.0,0.23574593]
[1769542937004,0.02338547,88424.0,88408.0,0.23574593]
[1769542937623,0.11328924,88423.0,88408.0,0.23574593]
[1769542937838,0.02338547,88424.0,88408.0,0.23574593]
[1769542938045,0.11328942,88423.0,88408.0,0.23574593]
[1769542938243,0.02338547,88424.0,88408.0,0.23574593]
[1769542938453,0.05654724,88422.0,88408.0,0.23574593]
[1769542938635,0.02338547,88422.0,88408.0,0.22017738]
[1769542953299,0.11330642,88421.0,88408.0,0.22017738]
[1769542953478,0.02338547,88422.0,88408.0,0.22017738]
[1769542953650,0.11330642,88421.0,88408.0,0.22017738]
[1769542953858,0.02338547,88422.0,88408.0,0.22017738]
[1769542954050,0.11330642,88421.0,88408.0,0.22017738]
[1769542954276,0.02338547,88422.0,88408.0,0.22017738]
[1769542954489,0.11331084,88421.0,88408.0,0.22017738]
[1769542954689,0.02338547,88422.0,88408.0,0.22017738]
[1769542954893,0.11331084,88421.0,88408.0,0.22017738]
[1769542955072,0.02338547,88422.0,88408.0,0.22017738]
[1769542955283,0.11331084,88421.0,88410.0,0.26924475]
[1769542955489,0.02338547,88422.0,88410.0,0.26924475]
[1769542955688,0.11331549,88421.0,88410.0,0.26924475]
[1769542955887,0.02338547,88422.0,88409.0,0.21010693]
[1769542956224,0.11331549,88421.0,88409.0,0.21010693]
[1769542956360,0.02338547,88422.0,88409.0,0.21010693]
[1769542956558,0.11331655,88421.0,88409.0,0.21010693]
[1769542956806,0.02338547,88422.0,88409.0,0.21010693]
[1769542957031,0.01397869,88426.0,88409.0,0.21010693]
[1769542957175,0.11331655,88425.0,88409.0,0.21010693]
[1769542957375,0.01397869,88426.0,88409.0,0.21010693]
[1769542957612,0.113317,88425.0,88409.0,0.21010693]
[1769542957934,0.01397869,88426.0,88409.0,0.21010693]
[1769542958063,0.113317,88425.0,88409.0,0.21010693]
[1769542958263,0.07052329,88426.0,88409.0,0.21010693]
[1769542958505,0.11331808,88425.0,88409.0,0.21010693]
[1769542958703,0.07052329,88426.0,88410.0,0.26924475]
[1769542959020,0.11331808,88425.0,88410.0,0.26924475]
[1769542959216,0.05654451,88426.0,88410.0,0.26924475]
[1769542959417,0.11331854,88425.0,88409.0,0.21010693]
[1769542959617,0.05654451,88426.0,88409.0,0.21010693]
[1769542959832,0.11331922,88425.0,88409.0,0.21010693]
[1769542960035,0.05654451,88426.0,88409.0,0.21010693]
[1769542960234,0.39371568,88425.0,88409.0,0.21010693]
[1769542960462,0.11331922,88424.0,88409.0,0.21010693]
[1769542962949,0.24669664,88425.0,88408.0,0.02466317]
[1769542962950,0.02284553,88425.0,88408.0,0.02466317]
[1769542963148,0.22385111,88432.0,88411.0,0.2100395]
[1769542963352,0.106813,88434.0,88414.0,0.02466317]
[1769542963353,0.02284553,88433.0,88414.0,0.02466317]
[1769542963595,0.02284553,88433.0,88415.0,0.2347701]
[1769542963795,0.07938579,88433.0,88415.0,0.2347701]
[1769542964031,0.02284553,88433.0,88415.0,0.2347701]
[1769542966359,0.106813,88434.0,88420.0,0.26924475]
[1769542966511,0.0002217,88440.0,88424.0,0.21010693]
[1769542966720,0.0002217,88440.0,88425.0,0.02329968]
[1769542966926,0.0002217,88440.0,88425.0,0.02102687]
[1769542967157,0.0002217,88440.0,88425.0,0.01875357]
[1769542967366,0.09084393,88440.0,88425.0,0.01647972]
[1769542967575,0.09084393,88440.0,88425.0,0.01420537]
[1769542967795,0.09084393,88440.0,88425.0,0.01193052]
[1769542967943,0.09084393,88440.0,88425.0,0.00920004]
[1769542968164,0.09084393,88440.0,88425.0,0.00692407]
[1769542968360,0.09084393,88440.0,88406.0,0.00384031]
[1769542968361,0.36008868,88440.0,88410.0,0.26924475]
[1769542968697,0.02284553,88436.0,88414.0,0.02466317]
[1769542968916,0.02284553,88435.0,88415.0,0.2347701]
[1769542970836,0.22385111,88434.0,88415.0,0.21010693]
[1769542971030,0.02284553,88431.0,88415.0,0.21010693]
[1769542971435,0.22385111,88430.0,88410.0,0.29381294]
[1769542971629,0.02284553,88429.0,88411.0,0.00113108]
[1769542971994,0.02284553,88429.0,88411.0,0.21123801]
[1769542976254,0.02284553,88429.0,88411.0,0.23512193]
[1769542976456,0.02284553,88429.0,88411.0,0.23399085]
[1769542977044,0.23254559,88434.0,88419.0,0.26914977]
[1769542977279,0.11320324,88433.0,88419.0,0.26914977]
[1769542977638,0.23254559,88434.0,88419.0,0.26914977]
[1769542977790,0.11320094,88433.0,88419.0,0.26914977]
[1769542977998,0.23254559,88434.0,88419.0,0.26914977]
[1769542978177,0.0002217,88440.0,88410.0,0.26914977]
[1769542978363,0.0002217,88440.0,88430.0,0.26914977]
[1769542979280,0.0002217,88440.0,88426.0,0.24646595]
[1769542979485,0.00031634,88440.0,88430.0,0.26914977]
[1769542981324,0.2100833,88440.0,88426.0,0.02388392]
[1769542982821,0.00031634,88440.0,88426.0,0.02388392]
[1769542984772,0.00031634,88440.0,88430.0,0.26914977]
[1769542984971,0.00031634,88440.0,88431.0,0.24646595]
[1769542985648,0.00031634,88440.0,88431.0,0.22258203]